fUST/lending_fUST_20250901
["ID","MTS","AMOUNT","RATE_DAILY","PERIOD"]
[382677459,1756707043119,-480.0,0.000143,2]
[382677461,1756707043128,-480.0,0.000143,2]
[382677463,1756707043137,-480.0,0.000143,2]
[382677465,1756707043147,-480.0,0.000143,2]
[382677467,1756707043156,-597.22,0.000143,2]
[382677469,1756707043166,-480.0,0.000143,2]
[382677471,1756707043175,-480.0,0.000143,2]
[382677473,1756707043185,-904.31,0.000143,2]
[382677475,1756707043194,-871.08,0.000143,2]
[382677477,1756707043204,-583.47,0.000143,2]
[382677479,1756707043214,-480.0,0.000143,2]
[382677481,1756707043224,-480.0,0.000143,2]
[382677483,1756707043234,-480.0,0.000143,2]
[382677485,1756707043243,-620.08695432,0.000143,2]
[382677487,1756707043253,-176.92287843,0.000143,2]
[382677489,1756707043263,-480.0,0.000143,2]
[382677491,1756707043273,-603.81,0.000143,2]
[382677493,1756707043283,-480.0,0.000143,2]
[382677495,1756707043292,-839.74,0.000143,2]
[382677497,1756707043303,-480.0,0.000143,2]
[382677499,1756707043313,-480.0,0.000143,2]
[382677501,1756707043323,-480.0,0.000143,2]
[382677503,1756707043335,-603.47,0.000143,2]
[382677505,1756707043345,-480.0,0.000143,2]
[382677507,1756707043355,-708.19,0.000143,2]
[382677509,1756707043365,-480.0,0.000143,2]
[382677511,1756707043375,-480.0,0.000143,2]
[382677513,1756707043385,-480.0,0.000143,2]
[382677515,1756707043394,-480.0,0.000143,2]
[382677517,1756707043404,-744.02,0.000143,2]
[382677518,1756707043413,-511.25,0.000143,2]
[382677519,1756707043422,-480.0,0.000143,2]
[382677520,1756707043431,-1126.25,0.000143,2]
[382677521,1756707043442,-490.68,0.000143,2]
[382677522,1756707043451,-480.0,0.000143,2]
[382677523,1756707043460,-480.0,0.000143,2]
[382677524,1756707043469,-965.21,0.000143,2]
[382677525,1756707043479,-718.27,0.000143,2]
[382677526,1756707043488,-480.0,0.000143,2]
[382677527,1756707043497,-678.38,0.000143,2]
[382677528,1756707043506,-480.0,0.000143,2]
[382677529,1756707043516,-480.0,0.000143,2]
[382677530,1756707043525,-970.36,0.000143,2]
[382677531,1756707043534,-480.0,0.000143,2]
[382677532,1756707043543,-480.0,0.000143,2]
[382677533,1756707043553,-480.0,0.000143,2]
[382677534,1756707043563,-584.68,0.000143,2]
[382677535,1756707043572,-480.0,0.000143,2]
[382677536,1756707043582,-480.0,0.000143,2]
[382677537,1756707043591,-192.36864164,0.000143,2]
[382677538,1756707043600,-542.38,0.000143,2]
[382677539,1756707043610,-480.0,0.000143,2]
[382677540,1756707043620,-480.0,0.000143,2]
[382677541,1756707043634,-573.41,0.000143,2]
[382677542,1756707043643,-480.0,0.000143,2]
[382677543,1756707043652,-926.21,0.000143,2]
[382677544,1756707043661,-480.0,0.000143,2]
[382677545,1756707043672,-480.0,0.000143,2]
[382677546,1756707043682,-682.96,0.000143,2]
[382677547,1756707043691,-1758.04,0.000143,2]
[382677548,1756707043702,-495.1,0.000143,2]
[382677549,1756707043711,-480.0,0.000143,2]
[382677550,1756707043720,-282.91472421,0.000143,2]
[382677551,1756707043729,-646.43,0.000143,2]
[382677552,1756707043738,-480.0,0.000143,2]
[382677553,1756707043747,-480.0,0.000143,2]
[382677554,1756707043756,-480.0,0.000143,2]
[382677555,1756707043765,-1512.45,0.000143,2]
[382677556,1756707043775,-480.0,0.000143,2]
[382677557,1756707043784,-186.9679042,0.00014301,2]
[382677559,1756707043793,-480.0,0.00014301,2]
[382677561,1756707043803,-480.0,0.00014301,2]
[382677563,1756707043812,-480.0,0.00014301,2]
[382677565,1756707043821,-213.21681394,0.00014301,2]
[382677567,1756707043830,-480.0,0.00014301,2]
[382677569,1756707043839,-480.0,0.00014301,2]
[382677571,1756707043849,-480.0,0.00014301,2]
[382677573,1756707043858,-621.92,0.00014301,2]
[382677575,1756707043867,-480.0,0.00014301,2]
[382677577,1756707043876,-501.23,0.00014301,2]
[382677579,1756707043885,-471.40083625,0.00014301,2]
[382677581,1756707043894,-480.0,0.00014301,2]
[382677583,1756707043903,-445.02023918,0.00014301,2]
[382677585,1756707043912,-480.0,0.00014301,2]
[382677587,1756707043922,-480.0,0.00014301,2]
[382677589,1756707043931,-480.0,0.00014301,2]
[382677591,1756707043940,-684.42,0.00014301,2]
[382677593,1756707043949,-854.57,0.00014301,2]
[382677595,1756707043958,-480.0,0.00014301,2]
[382677597,1756707043968,-480.0,0.00014301,2]
[382677599,1756707043977,-480.0,0.00014301,2]
[382677601,1756707043986,-480.0,0.00014301,2]
[382677603,1756707043995,-571.19,0.00014301,2]
[382677605,1756707044004,-593.65,0.00014301,2]
[382677607,1756707044013,-480.0,0.00014301,2]
[382677609,1756707044022,-724.42,0.00014301,2]
[382677611,1756707044032,-480.0,0.00014303,2]
[382677613,1756707044041,-744.14,0.00014303,2]
[382677615,1756707044050,-480.0,0.00014303,2]
[382677617,1756707044059,-759.3,0.00014303,2]
[382677619,1756707044068,-480.0,0.00014303,2]
[382677621,1756707044077,-230.74040021,0.00014303,2]
[382677623,1756707044086,-585.17,0.00014303,2]
[382677625,1756707044095,-480.0,0.00014303,2]
[382677627,1756707044104,-528.19,0.00014303,2]
[382677629,1756707044114,-480.0,0.00014303,2]
[382677631,1756707044123,-480.0,0.00014303,2]
[382677633,1756707044132,-480.0,0.00014303,2]
[382677635,1756707044141,-480.0,0.00014303,2]
[382677637,1756707044150,-1127.17,0.00014303,2]
[382677639,1756707044159,-1038.16,0.00014303,2]
[382677641,1756707044169,-480.0,0.00014303,2]
[382677643,1756707044178,-480.0,0.00014303,2]
[382677645,1756707044187,-480.0,0.00014303,2]
[382677647,1756707044196,-480.0,0.00014303,2]
[382677649,1756707044205,-480.0,0.00014303,2]
[382677651,1756707044214,-1041.99,0.00014303,2]
[382677653,1756707044224,-917.34,0.00014303,2]
[382677655,1756707044233,-480.0,0.00014303,2]
[382677657,1756707044242,-480.0,0.00014303,2]
[382677659,1756707044251,-908.93,0.00014303,2]
[382677661,1756707044261,-480.0,0.00014303,2]
[382677663,1756707044270,-480.0,0.00014303,2]
[382677665,1756707044279,-480.0,0.00014303,2]
[382677667,1756707044288,-480.0,0.00014303,2]
[382677669,1756707044297,-551.02,0.00014303,2]
[382677671,1756707044306,-483.08954368,0.00014303,2]
[382677673,1756707044315,-781.66,0.00014303,2]
[382677675,1756707044324,-480.0,0.00014303,2]
[382677677,1756707044333,-963.4,0.00014303,2]
[382677679,1756707044343,-1041.18,0.00014303,2]
[382677681,1756707044352,-480.0,0.00014303,2]
[382677683,1756707044361,-777.18,0.00014303,2]
[382677685,1756707044370,-480.0,0.00014303,2]
[382677687,1756707044383,-480.0,0.00014303,2]
[382677689,1756707044396,-1179.02,0.00014303,2]
[382677691,1756707044405,-967.25,0.00014303,2]
[382677693,1756707044414,-803.4,0.00014303,2]
[382677695,1756707044423,-990.18,0.00014303,2]
[382677697,1756707044433,-1251.41,0.00014303,2]
[382677699,1756707044442,-1116.51,0.00014303,2]
[382677701,1756707044451,-550.84,0.00014303,2]
[382677703,1756707044461,-480.0,0.00014303,2]
[382677705,1756707044470,-3175.38,0.00014303,2]
[382677707,1756707044479,-1869.18,0.00014303,2]
[382677709,1756707044488,-1173.55,0.00014303,2]
[382677711,1756707044497,-480.0,0.00014303,2]
[382677713,1756707044506,-4374.8,0.00014303,2]
[382677715,1756707044515,-480.0,0.00014303,2]
[382677717,1756707044524,-963.93,0.00014303,2]
[382677719,1756707044533,-691.91,0.00014303,2]
[382677721,1756707044542,-480.0,0.00014303,2]
[382677722,1756707044551,-480.0,0.00014303,2]
[382677725,1756707044561,-621.51,0.00014303,2]
[382677727,1756707044571,-480.0,0.00014303,2]
[382677728,1756707044580,-1004.14,0.00014303,2]
[382677730,1756707044589,-1207.99,0.00014303,2]
[382677732,1756707044599,-1733.59,0.00014303,2]
[382677734,1756707044609,-4150.3,0.00014303,2]
[382677737,1756707044619,-542.2,0.00014303,2]
[382677739,1756707044633,-1111.82,0.00014303,2]
[382677741,1756707044642,-543.81,0.00014303,2]
[382677743,1756707044652,-1636.29,0.00014303,2]
[382677745,1756707044661,-4342.96,0.00014303,2]
[382677747,1756707044670,-205.7,0.00014303,2]
[382677749,1756707044680,-481.42,0.00014303,2]
[382677751,1756707044688,-1170.28,0.00014303,2]
[382677752,1756707044699,-480.0,0.00014303,2]
[382677755,1756707044709,-613.17,0.00014303,2]
[382677757,1756707044719,-518.73,0.00014303,2]
[382677758,1756707044728,-3009.92,0.00014303,2]
[382677761,1756707044737,-1188.22,0.00014303,2]
[382677763,1756707044747,-480.0,0.00014304,2]
[382677765,1756707044756,-480.0,0.00014304,2]
[382677767,1756707044766,-480.0,0.00014304,2]
[382677769,1756707044775,-480.0,0.00014304,2]
[382677771,1756707044784,-480.0,0.00014304,2]
[382677773,1756707044793,-480.0,0.00014304,2]
[382677775,1756707044802,-480.0,0.00014304,2]
[382677777,1756707044811,-761.88,0.00014304,2]
[382677779,1756707044821,-480.0,0.00014304,2]
[382677781,1756707044830,-480.0,0.00014304,2]
[382677783,1756707044839,-480.0,0.00014304,2]
[382677785,1756707044848,-480.0,0.00014304,2]
[382677787,1756707044857,-480.0,0.00014304,2]
[382677789,1756707044867,-756.13,0.00014304,2]
[382677791,1756707044876,-480.0,0.00014304,2]
[382677793,1756707044885,-783.78,0.00014304,2]
[382677795,1756707044895,-486.19925006,0.00014304,2]
[382677797,1756707044904,-480.0,0.00014304,2]
[382677799,1756707044913,-480.0,0.00014304,2]
[382677801,1756707044923,-1068.34,0.00014304,2]
[382677803,1756707044933,-480.0,0.00014304,2]
[382677805,1756707044942,-480.0,0.00014304,2]
[382677807,1756707044951,-480.0,0.00014304,2]
[382677809,1756707044961,-539.57,0.00014304,2]
[382677811,1756707044970,-480.0,0.00014304,2]
[382677813,1756707044981,-480.0,0.00014304,2]
[382677815,1756707044990,-480.0,0.00014304,2]
[382677817,1756707044999,-1074.16,0.00014304,2]
[382677819,1756707045009,-480.0,0.00014304,2]
[382677821,1756707045019,-480.0,0.00014304,2]
[382677823,1756707045028,-480.0,0.00014304,2]
[382677825,1756707045038,-480.0,0.00014304,2]
[382677827,1756707045048,-480.0,0.00014304,2]
[382677829,1756707045057,-480.0,0.00014304,2]
[382677831,1756707045067,-997.17,0.00014304,2]
[382677833,1756707045076,-480.0,0.00014304,2]
[382677835,1756707045085,-480.0,0.00014304,2]
[382677838,1756707045096,-49.98578385,0.00014304,2]
[382677899,1756707045669,-169.97848324,0.00014026,2]
[382677924,1756707045902,-330.02151676,0.00014026,2]
[382677926,1756707045912,-182.78567984,0.0001403,2]
[382677928,1756707045922,-192.82066527,0.00014304,2]
[382677930,1756707045932,-480.0,0.00014304,2]
[382677932,1756707045941,-480.0,0.00014304,2]
[382677934,1756707045950,-480.0,0.00014304,2]
[382677936,1756707045960,-480.0,0.00014304,2]
[382677938,1756707045969,-661.3,0.00014304,2]
[382677940,1756707045979,-549.67,0.00014304,2]
[382677942,1756707045989,-475.4021385,0.00014304,2]
[382678029,1756707046804,-454.27226165,0.00014025,2]
[382678031,1756707046814,-480.0,0.00014025,2]
[382678033,1756707046824,-364.04326404,0.00014026,2]
[382678035,1756707046834,-480.0,0.00014026,2]
[382678037,1756707046844,-480.0,0.0001403,2]
[382678039,1756707046854,-316.06,0.00014299,2]
[382678062,1756707047055,-4.5978615,0.00014304,2]
[382678064,1756707047067,-480.0,0.00014304,2]
[382678066,1756707047077,-544.63,0.00014304,2]
[382678068,1756707047087,-480.0,0.00014304,2]
[382678070,1756707047096,-480.0,0.00014304,2]
[382678072,1756707047107,-480.0,0.00014304,2]
[382678074,1756707047118,-480.0,0.00014304,2]
[382678076,1756707047128,-480.0,0.00014304,2]
[382678078,1756707047138,-522.31,0.00014304,2]
[382678080,1756707047150,-480.0,0.00014304,2]
[382678082,1756707047160,-480.0,0.00014304,2]
[382678084,1756707047171,-480.0,0.00014304,2]
[382678086,1756707047181,-1091.05,0.00014304,2]
[382678088,1756707047192,-480.0,0.00014304,2]
[382678090,1756707047202,-480.0,0.00014304,2]
[382678093,1756707047212,-480.0,0.00014304,2]
[382678094,1756707047222,-480.0,0.00014304,2]
[382678097,1756707047232,-480.0,0.00014304,2]
[382678099,1756707047241,-480.0,0.00014304,2]
[382678101,1756707047251,-200.75158927,0.00014304,2]
[382678103,1756707047261,-480.0,0.00014304,2]
[382678105,1756707047271,-480.0,0.00014304,2]
[382678107,1756707047280,-480.0,0.00014304,2]
[382678109,1756707047290,-480.0,0.00014304,2]
[382678110,1756707047300,-480.0,0.00014304,2]
[382678113,1756707047309,-480.0,0.00014304,2]
[382678115,1756707047319,-480.0,0.00014304,2]
[382678117,1756707047328,-152.927153,0.00014304,2]
[382678118,1756707047337,-480.0,0.00014304,2]
[382678121,1756707047348,-152.088366,0.00014304,2]
[382678124,1756707047357,-151.0,0.00014304,2]
[382678126,1756707047368,-151.0,0.00014304,2]
[382678127,1756707047377,-480.0,0.00014304,2]
[382678130,1756707047387,-872.62,0.00014304,2]
[382678132,1756707047396,-475.17893973,0.00014304,2]
[382678134,1756707047406,-908.45,0.00014304,2]
[382678136,1756707047415,-288.547419,0.00014304,2]
[382678137,1756707047424,-480.0,0.00014304,2]
[382678140,1756707047434,-980.09,0.00014304,2]
[382678141,1756707047443,-480.0,0.00014304,2]
[382678143,1756707047453,-480.0,0.00014304,2]
[382678146,1756707047462,-480.0,0.00014304,2]
[382678148,1756707047472,-498.940558,0.00014304,2]
[382678149,1756707047482,-151.0,0.00014304,2]
[382678151,1756707047491,-498.940558,0.00014304,2]
[382678154,1756707047501,-3567.19,0.00014304,2]
[382678156,1756707047511,-498.940558,0.00014304,2]
[382678157,1756707047521,-513.3,0.00014304,2]
[382678160,1756707047532,-498.940558,0.00014304,2]
[382678162,1756707047541,-381.87211716,0.00014304,2]
[382678164,1756707047551,-480.0,0.00014304,2]
[382678165,1756707047559,-151.634699,0.00014304,2]
[382678167,1756707047568,-155.797552,0.00014304,2]
[382678169,1756707047578,-480.0,0.00014304,2]
[382678171,1756707047587,-480.0,0.00014304,2]
[382678173,1756707047597,-480.0,0.00014304,2]
[382678175,1756707047606,-480.0,0.00014304,2]
[382678177,1756707047617,-480.0,0.00014304,2]
[382678179,1756707047633,-480.0,0.00014304,2]
[382678181,1756707047643,-151.0,0.00014304,2]
[382678183,1756707047653,-482.26,0.00014304,2]
[382678185,1756707047663,-151.0,0.00014304,2]
[382678187,1756707047674,-151.0,0.00014304,2]
[382678189,1756707047684,-480.0,0.00014304,2]
[382678191,1756707047699,-480.0,0.00014304,2]
[382678193,1756707047711,-480.0,0.00014304,2]
[382678195,1756707047721,-549.41,0.00014304,2]
[382678197,1756707047730,-151.0,0.00014304,2]
[382678199,1756707047739,-480.0,0.00014304,2]
[382678201,1756707047749,-480.0,0.00014304,2]
[382678203,1756707047758,-480.0,0.00014304,2]
[382678205,1756707047768,-480.0,0.00014304,2]
[382678206,1756707047777,-174.42309,0.00014304,2]
[382678207,1756707047787,-480.0,0.00014304,2]
[382678208,1756707047796,-151.0,0.00014304,2]
[382678209,1756707047806,-480.0,0.00014304,2]
[382678210,1756707047816,-480.0,0.00014304,2]
[382678211,1756707047825,-480.0,0.00014304,2]
[382678212,1756707047835,-480.0,0.00014304,2]
[382678213,1756707047844,-769.86525538,0.00014333,2]
[382678214,1756707047854,-151.0,0.000144,2]
[382678215,1756707047863,-480.0,0.00014404,2]
[382678216,1756707047874,-743.88,0.00014404,2]
[382678217,1756707047883,-1072.45,0.00014404,2]
[382678218,1756707047893,-930.13,0.00014404,2]
[382678219,1756707047903,-541.23,0.00014404,2]
[382678220,1756707047913,-480.0,0.00014404,2]
[382678221,1756707047923,-635.16,0.00014404,2]
[382678222,1756707047932,-554.4,0.00014404,2]
[382678223,1756707047942,-566.09,0.00014404,2]
[382678224,1756707047951,-480.0,0.00014404,2]
[382678225,1756707047960,-480.0,0.00014404,2]
[382678226,1756707047970,-480.0,0.00014404,2]
[382678227,1756707047979,-480.0,0.00014404,2]
[382678228,1756707047989,-798.09,0.00014404,2]
[382678229,1756707047998,-555.15,0.00014404,2]
[382678230,1756707048007,-480.0,0.00014404,2]
[382678231,1756707048017,-480.0,0.00014404,2]
[382678232,1756707048027,-828.13,0.00014404,2]
[382678233,1756707048037,-480.0,0.00014404,2]
[382678234,1756707048046,-480.0,0.00014404,2]
[382678236,1756707048056,-1391.13,0.00014404,2]
[382678238,1756707048065,-480.0,0.00014404,2]
[382678240,1756707048075,-480.0,0.00014404,2]
[382678242,1756707048084,-480.0,0.00014404,2]
[382678244,1756707048094,-561.62,0.00014404,2]
[382678246,1756707048103,-480.0,0.00014404,2]
[382678248,1756707048113,-480.0,0.00014404,2]
[382678250,1756707048124,-480.0,0.00014404,2]
[382678253,1756707048134,-480.0,0.00014404,2]
[382678254,1756707048143,-480.0,0.00014404,2]
[382678257,1756707048153,-480.0,0.00014404,2]
[382678258,1756707048162,-518.0,0.00014404,2]
[382678261,1756707048172,-480.0,0.00014404,2]
[382678263,1756707048182,-509.6,0.00014418,2]
[382678264,1756707048191,-509.6,0.00014433,2]
[382678267,1756707048201,-509.59,0.00014447,2]
[382678269,1756707048211,-769.86525538,0.00014467,2]
[382678271,1756707048221,-151.0,0.000145,2]
[382678272,1756707048230,-151.0,0.000145,2]
[382678275,1756707048241,-480.0,0.00014502,2]
[382678276,1756707048250,-669.08,0.00014502,2]
[382678278,1756707048260,-685.43,0.00014502,2]
[382678281,1756707048270,-480.0,0.00014502,2]
[382678283,1756707048280,-966.74,0.00014502,2]
[382678284,1756707048290,-480.0,0.00014502,2]
[382678286,1756707048299,-480.0,0.00014502,2]
[382678289,1756707048309,-480.0,0.00014502,2]
[382678290,1756707048318,-480.0,0.00014502,2]
[382678292,1756707048328,-482.24831046,0.00014502,2]
[382678294,1756707048337,-498.58,0.00014502,2]
[382678296,1756707048347,-480.0,0.00014503,2]
[382678298,1756707048356,-646.54,0.00014503,2]
[382678300,1756707048366,-481.45449761,0.00014503,2]
[382678302,1756707048377,-482.05181639,0.00014503,2]
[382678304,1756707048386,-189.30504514,0.00014503,2]
[382678306,1756707048396,-480.0,0.00014503,2]
[382678308,1756707048406,-480.0,0.00014503,2]
[382678310,1756707048415,-480.0,0.00014503,2]
[382678312,1756707048424,-480.0,0.00014503,2]
[382678314,1756707048434,-480.0,0.00014503,2]
[382678316,1756707048443,-480.0,0.00014503,2]
[382678318,1756707048453,-480.0,0.00014503,2]
[382678320,1756707048463,-480.0,0.00014503,2]
[382678322,1756707048472,-480.0,0.00014503,2]
[382678324,1756707048483,-480.0,0.00014503,2]
[382678326,1756707048493,-249.3699655,0.00014503,2]
[382678328,1756707048504,-371.46396305,0.00014503,2]
[382678330,1756707048513,-480.0,0.00014503,2]
[382678332,1756707048525,-480.0,0.00014503,2]
[382678335,1756707048536,-685.49,0.00014503,2]
[382678336,1756707048546,-386.54289501,0.00014503,2]
[382678339,1756707048556,-480.0,0.00014503,2]
[382678340,1756707048565,-480.0,0.00014503,2]
[382678342,1756707048575,-480.0,0.00014503,2]
[382678344,1756707048584,-480.0,0.00014503,2]
[382678346,1756707048594,-274.67077006,0.00014503,2]
[382678348,1756707048604,-480.0,0.00014503,2]
[382678351,1756707048615,-585.8,0.00014503,2]
[382678353,1756707048624,-857.87,0.00014503,2]
[382678354,1756707048636,-480.0,0.00014503,2]
[382678356,1756707048647,-762.84,0.00014503,2]
[382678358,1756707048657,-480.0,0.00014503,2]
[382678360,1756707048667,-623.68467902,0.00014503,2]
[382678362,1756707048676,-480.0,0.00014503,2]
[382678364,1756707048686,-480.0,0.00014503,2]
[382678366,1756707048695,-480.0,0.00014503,2]
[382678368,1756707048705,-480.0,0.00014503,2]
[382678370,1756707048715,-480.0,0.00014503,2]
[382678372,1756707048725,-480.0,0.00014503,2]
[382678374,1756707048735,-480.0,0.00014503,2]
[382678376,1756707048744,-570.52,0.00014503,2]
[382678378,1756707048754,-480.0,0.00014503,2]
[382678380,1756707048763,-480.0,0.00014503,2]
[382678382,1756707048772,-1133.55,0.00014503,2]
[382678384,1756707048781,-666.07,0.00014503,2]
[382678386,1756707048790,-480.0,0.00014503,2]
[382678388,1756707048799,-356.8862492,0.00014503,2]
[382678390,1756707048808,-579.03265243,0.00014503,2]
[382678392,1756707048817,-480.0,0.00014503,2]
[382678394,1756707048826,-480.0,0.00014503,2]
[382678396,1756707048835,-521.81810482,0.00014503,2]
[382678398,1756707048844,-480.0,0.00014503,2]
[382678400,1756707048853,-480.0,0.00014503,2]
[382678402,1756707048864,-480.0,0.00014505,2]
[382678404,1756707048874,-487.26,0.00014505,2]
[382678406,1756707048883,-480.0,0.00014505,2]
[382678408,1756707048893,-151230.30525129,0.00014567,2]
[382678847,1756707053373,201.06,0.00012329,2]
[382678979,1756707054711,477.94879651,0.00013884,2]
[382678983,1756707054741,2.05120349,0.00013884,2]
[382679423,1756707063167,480.0,0.00013884,2]
[382679424,1756707063772,167.55,0.00012329,2]
[382679426,1756707072507,960.0,0.00013884,2]
[382679429,1756707074145,837.8,0.00012329,2]
[382679431,1756707081149,1440.0,0.00013884,2]
[382679432,1756707090000,1920.0,0.00013884,2]
[382679433,1756707098713,1920.0,0.00013884,2]
[382679434,1756707104093,2272.60879651,0.00013926,2]
[382679435,1756707104124,10000.01,0.00013926,2]
[382679436,1756707104152,10000.01,0.00013926,2]
[382679437,1756707104180,10000.01,0.00013926,2]
[382679438,1756707104207,10000.01,0.00013926,2]
[382679439,1756707104233,10000.01,0.00013926,2]
[382679440,1756707104260,10000.01,0.00013926,2]
[382679441,1756707104286,10000.01,0.00013926,2]
[382679442,1756707104312,10000.01,0.00013926,2]
[382679443,1756707104337,10000.01,0.00013926,2]
[382679444,1756707104363,10000.01,0.00013926,2]
[382679445,1756707104389,10000.01,0.00013926,2]
[382679446,1756707104414,10000.01,0.00013926,2]
[382679447,1756707104440,10000.01,0.00013926,2]
[382679448,1756707104467,10000.01,0.00013926,2]
[382679449,1756707104495,10000.01,0.00013926,2]
[382679450,1756707104522,10000.01,0.00013926,2]
[382679451,1756707104550,10000.01,0.00013926,2]
[382679452,1756707104577,10000.01,0.00013926,2]
[382679453,1756707104604,10000.01,0.00013926,2]
[382679454,1756707104630,10000.01,0.00013926,2]
[382679455,1756707104661,10000.01,0.00013926,2]
[382679456,1756707104688,10000.01,0.00013926,2]
[382679457,1756707104717,10000.01,0.00013926,2]
[382679458,1756707104745,10000.01,0.00013926,2]
[382679459,1756707104772,10000.01,0.00013926,2]
[382679460,1756707104799,10000.01,0.00013926,2]
[382679461,1756707104827,10000.01,0.00013926,2]
[382679462,1756707104853,10000.01,0.00013926,2]
[382679463,1756707104881,10000.01,0.00013926,2]
[382679464,1756707104907,10000.01,0.00013926,2]
[382679465,1756707104933,10000.01,0.00013926,2]
[382679466,1756707104960,10000.01,0.00013926,2]
[382679467,1756707104987,10000.01,0.00013926,2]
[382679468,1756707105013,10000.01,0.00013926,2]
[382679469,1756707105039,10000.01,0.00013926,2]
[382679470,1756707105066,10000.01,0.00013926,2]
[382679471,1756707105092,7727.03120349,0.00013926,2]
[382679472,1756707105753,2272.97879651,0.0001393,2]
[382679473,1756707105782,2204.54994457,0.0001393,2]
[382679475,1756707107615,1920.0,0.00013884,2]
[382679476,1756707116249,284.52472,0.00013699,2]
[382679477,1756707116424,1920.0,0.00013884,2]
[382679478,1756707125454,1920.0,0.00013884,2]
[382679479,1756707134404,900.0,0.00013883,2]
[382679480,1756707142758,850.93533543,0.00013883,2]
[382679481,1756707142786,49.06466457,0.00013883,2]
[382679482,1756707151643,900.0,0.00013883,2]
[382679483,1756707159878,900.0,0.00013883,2]
[382679484,1756707168879,900.0,0.00013883,2]
[382679485,1756707177318,900.0,0.00013883,2]
[382679486,1756707186304,1200.0,0.00013883,2]
[382679487,1756707195199,1200.0,0.00013883,2]
[382679488,1756707203551,1200.0,0.00013883,2]
[382679489,1756707212694,1200.0,0.00013883,2]
[382679490,1756707221037,1200.0,0.00013883,2]
[382679491,1756707229852,400.01,0.00013883,2]
[382679492,1756707229878,717.38196413,0.00013883,2]
[382679493,1756707238264,1200.0,0.00013883,2]
[382679494,1756707247159,1200.0,0.00013883,2]
[382679495,1756707263396,1200.0,0.00013883,2]
[382679496,1756707266820,5633.5633713,0.00013926,2]
[382679497,1756707266846,10000.01,0.00013926,2]
[382679498,1756707266871,10000.01,0.00013926,2]
[382679499,1756707266895,10000.01,0.00013926,2]
[382679500,1756707266920,10000.01,0.00013926,2]
[382679501,1756707266945,10000.01,0.00013926,2]
[382679502,1756707266971,10000.01,0.00013926,2]
[382679503,1756707266996,10000.01,0.00013926,2]
[382679504,1756707267023,10000.01,0.00013926,2]
[382679505,1756707267051,10000.01,0.00013926,2]
[382679506,1756707267076,10000.01,0.00013926,2]
[382679507,1756707267102,10000.01,0.00013926,2]
[382679508,1756707267126,10000.01,0.00013926,2]
[382679509,1756707267151,10000.01,0.00013926,2]